Cogmind - Beta 16.1 @@@ ROGUE MODE // 2026.02.24 @ 12:39:12 Player: TheSkyeDoctor Result: Self-destructed Performance ------------- Evolutions (2) 1000 Regions Visited (3) 600 Robots Destroyed (28) 140 Value Destroyed (425) 425 Prototype IDs (0) 0 Alien Tech Used (0) 0 Bonus (0) 0 TOTAL SCORE: 2165 Bonus ------- None Cogmind --------- Core Integrity 466/550 Matter 270/300 Energy 250/250 System Corruption 0% Temperature Cool (39) Movement Core (800) Ox15 Location -8/Materials Parts ------- > --- POWER (1) -------- Ion Engine > --- PROPULSION (2) --- (None) > --- UTILITY (5) ------ High-capacity Storage Unit Structural Scanner Signal Interpreter Improved Targeting Computer Propulsion Shielding > --- WEAPON (3) ------- (None) > --- INVENTORY (20) --- Improved Heat Sink Improved Terrain Scanner Propulsion Shielding Utility Shielding Shield Generator Peak State ------------ > --- POWER ------------ Ion Engine > --- PROPULSION ------- Light Treads Light Treads > --- UTILITY ---------- Large Storage Unit Structural Scanner Sensor Array Signal Interpreter > --- WEAPON ----------- Medium Laser Rocket Launcher > --- INVENTORY -------- Ion Engine Wheel Wheel Improved Heat Sink Improved Terrain Scanner Propulsion Shielding Propulsion Shielding Light Assault Rifle [Rating: 11] Favorites ----------- Power Ion Engine Engine Ion Engine Propulsion Light Treads Treads Light Treads Wheel Wheel Utility Signal Interpreter Device Structural Scanner Storage Large Storage Unit Processor Signal Interpreter Protection Propulsion Shielding Weapon Medium Laser Energy Gun Medium Laser Ballistic Gun Light Assault Rifle Launcher Rocket Launcher Build | -11 -10 -9 -8 ------- Run | Yrd Mat Mat Mat Slots Evolved 4 | . . 2 2 Power . | . . . . Propulsion . | . . . . Utility 3 | . . 2 1 Weapon 1 | . . . 1 Parts Attached 18 | 7 1 7 3 Power 2 | 1 . 1 . Engine 2 | 1 . 1 . Core . | . . . . Reactor . | . . . . Propulsion 4 | 2 . 2 . Treads 2 | 2 . . . Leg . | . . . . Wheel 2 | . . 2 . Hover . | . . . . Flight . | . . . . Utility 9 | 2 1 3 3 Device 3 | 1 . 2 . Storage 3 | 1 1 . 1 Processor 2 | . . 1 1 Hackware . | . . . . Protection 1 | . . . 1 Artifact . | . . . . Weapon 3 | 2 . 1 . Energy Gun 1 | 1 . . . Energy Cannon . | . . . . Ballistic Gun 1 | 1 . . . Ballistic Cannon . | . . . . Launcher 1 | . . 1 . Special Weapon . | . . . . Impact Weapon . | . . . . Slashing Weapon . | . . . . Piercing Weapon . | . . . . Special Melee Weapon . | . . . . Unidentified Prototypes . | . . . . Parts Lost 10 | . 1 7 2 Power 1 | . . 1 . Propulsion 4 | . . 3 1 Utility 2 | . 1 1 . Weapon 3 | . . 2 1 Highest Loss Streak 5 | . 1 5 2 To Critical Strikes . | . . . . Average Backups 6 | 3 6 7 5 Power . | . 1 . . Propulsion 1 | 2 2 1 . Utility 3 | . 2 4 4 Weapon . | . . . . Tool/Special . | . . . . Unused Backups 7 | 1 . 1 5 Power . | . . . . Propulsion 1 | 1 . . . Utility 5 | . . . 5 Weapon 1 | . . 1 . Tool/Special . | . . . . Average Slot Usage (%) 91 | . 96 93 70 Engine 11 | . 14 11 9 Treads 19 | . 28 14 8 Wheel 1 | . . 3 . Device 15 | . 10 21 9 Storage 11 | . 14 11 9 Processor 7 | . . 11 18 Protection 1 | . . . 8 Energy Gun 11 | . 14 11 9 Ballistic Gun 8 | . 14 4 . Launcher 2 | . . 4 . Peak Build Rating 11 | 7 7 11 10 Average Rating 7 | 5 6 9 9 On Entrance 5 | . 7 7 6 Avg Prop Armor Cover (%) . | . . . . Naked Turns . | . . . . Heaviest Build 49 | 14 29 33 49 Greatest Support 40 | 40 40 40 20 Greatest Overweight (x) 9 | 3 . 9 2 Average Overweight (x) . | . . . 2 Largest Inventory Capacity 20 | 8 15 15 20 Average Capacity 12 | 7 10 15 19 Most Carried 10 | 7 8 10 7 Average Carried 6 | 3 6 7 4 Final Capacity 20 | 8 15 15 20 Final Carried 8 | 4 8 8 5 Class Distribution -------------------- 69% | Mutant 30% | Skirmisher Dominant Class ---------------- Mutant | -10/Materials Skirmisher | -9/Materials Mutant | -8/Materials Resources | -11 -10 -9 -8 ----------- Run | Yrd Mat Mat Mat Matter Collected 494 | 287 37 170 . Remotely . | . . . . Salvage Created 644 | 143 171 295 35 Parts 37 | 11 8 17 1 Haulers Intercepted . | . . . . Recyclers Shooed 1 | . . 1 . Parts Field Recycled . | . . . . Retrieved Matter . | . . . . Parts Self-Destructed . | . . . . Prevented . | . . . . Parts Restored . | . . . . Kills | -11 -10 -9 -8 ------- Run | Yrd Mat Mat Mat Combat Hostiles Destroyed 20 | . 8 10 2 Guns 16 | . 8 6 2 AOE 4 | . . 4 . Classes Destroyed 7 | 2 2 3 . Worker 1 | . . 1 . Tunneler 4 | 4 . . . Recycler 2 | 1 . 1 . Watcher 1 | . . 1 . Swarmer 14 | . 6 6 2 Grunt 5 | . 2 3 . Sentry 1 | . . 1 . Best Kill Streak 5 | 3 5 4 2 Combat Bots Only 5 | . 5 3 2 Max Kills in Single Turn 3 | 1 1 3 1 Gunslinging . | . . . . Exploded 2 | . . 2 . Melee . | . . . . Uniques/NPCs Destroyed . | . . . . Combat | -11 -10 -9 -8 -------- Run | Yrd Mat Mat Mat Hostile Shots Fired 143 | . 56 60 27 Missed 30 | . 9 15 6 Hits 113 | . 47 45 21 Projectile 113 | . 47 45 21 Critical Strikes 1 | . . 1 . Damage Taken 1148 | . 398 517 233 Core 245 | . 59 102 84 Absorbed by Shields . | . . . . Redirected to Shielding 13 | . . . 13 Core Remaining (%) 83 | 100 76 74 . Volleys Fired 87 | 17 32 30 8 Largest 2 | 2 2 2 1 Hottest 83 | 70 70 83 50 Shots Fired 151 | 34 64 45 8 Gun 142 | 34 64 36 8 Cannon . | . . . . Launcher 9 | . . 9 . Special . | . . . . Kinetic 57 | 17 32 8 . Thermal 85 | 17 32 28 8 Explosive 9 | . . 9 . Electromagnetic . | . . . . Robot Hit Streak 9 | 5 7 9 3 Robot Miss Streak 3 | 3 3 2 1 Penetration Max . | . . . . Secondary Targets 1 | . 1 . . Max Gunslinging Chain 1 | . 1 . . Shots Hit Robots 88 | 19 36 28 5 Core Hits 46 | 8 16 20 2 Critical Kills . | . . . . Critical Parts Destroyed . | . . . . Critical Strikes 4 | . 2 2 . Burn 4 | . 2 2 . Melee Attacks . | . . . . Impact . | . . . . Slashing . | . . . . Piercing . | . . . . Sneak Attacks . | . . . . Combat Hostiles . | . . . . Follow-up Attacks . | . . . . Damage Inflicted 1438 | 200 374 776 88 Guns 946 | 200 374 284 88 Cannons . | . . . . Explosions 492 | . . 492 . Melee . | . . . . Ramming . | . . . . Kinetic 290 | 87 159 44 . Thermal 656 | 113 215 240 88 Explosive 492 | . . 492 . Electromagnetic . | . . . . Impact . | . . . . Slashing . | . . . . Piercing . | . . . . Highest Corruption . | . . . . Average Corruption . | . . . . Corruption Purged . | . . . . Corruption Blocked . | . . . . Overload Shots . | . . . . Overflow Damage 7 | . . 7 . Projectiles . | . . . . Explosions 7 | . . 7 . Melee . | . . . . Knockbacks . | . . . . Impact . | . . . . Kinetic . | . . . . Secondary . | . . . . Self-Inflicted Damage 25 | . . 25 . Shots 1 | . . 1 . Rammed . | . . . . Targets Rammed . | . . . . Kicked . | . . . . Crushed . | . . . . Highest Temperature 350 | 120 350 75 23 Average Temperature 78 | 44 134 29 16 Received Heat Transfer 321 | . 60 207 54 Siege Activations . | . . . . Martial Activations . | . . . . Shielding Activations . | . . . . Robots Disrupted . | . . . . Combat Hostiles . | . . . . Robots Corrupted . | . . . . Combat Hostiles . | . . . . Parts Fried . | . . . . Impact Corruptions . | . . . . Robots Melted . | . . . . Combat Hostiles . | . . . . Parts Melted 3 | . 1 2 . Heat Transferred 2220 | 333 777 851 259 Parts Sabotaged . | . . . . Parts Stolen . | . . . . Parts Stripped . | . . . . Power Chain Reactions . | . . . . Alert | -11 -10 -9 -8 ------- Run | Yrd Mat Mat Mat Maximum Alert Level . | . . . . Low Security (%) 100 | 100 100 100 100 Level 1 . | . . . . Level 2 . | . . . . Level 3 . | . . . . Level 4 . | . . . . Level 5 . | . . . . High Security . | . . . . Max Security . | . . . . Peak Influence 124 | 10 100 124 50 Initial 29 | . . 3 29 Average 33 | 1 31 61 9 Influence Increases 599 | 25 190 334 50 Destroy 0b10 Robot/C 400 | . 160 200 40 Destroy 0b10 Robot/NC 40 | 25 . 15 . Destroy Leader 82 | . 30 42 10 Destroy Structure 62 | . . 62 . Lose Combat Pursuer 15 | . . 15 . Influence Decreases 569 | 25 182 270 92 Entered New Map 48 | . . 5 43 Time Decay 421 | 25 172 195 29 Lost Part 100 | . 10 70 20 Squads Dispatched 2 | . 1 1 . Investigation 1 | . . 1 . Extermination . | . . . . Reinforcement 1 | . 1 . . Assault . | . . . . Garrison . | . . . . Intercept . | . . . . Searches Triggered . | . . . . Construction Impeded . | . . . . Haulers Reinforced . | . . . . Active Scanning Responses . | . . . . Cargo Convoy Interrupts . | . . . . Stealth | -11 -10 -9 -8 --------- Run | Yrd Mat Mat Mat Distress Signals 3 | . 1 2 . Communications Jammed . | . . . . Distress Signals . | . . . . Times Spotted 36 | . 13 14 9 Peak Tracking Total 7 | . 5 3 7 Tactical Retreats 1 | . . 1 . Traps | -11 -10 -9 -8 ------- Run | Yrd Mat Mat Mat Traps Triggered 1 | . . 1 . Indirectly . | . . . . Trap Hack Attempts . | . . . . Triggered . | . . . . Disarmed . | . . . . Reprogrammed . | . . . . Reused . | . . . . Traps Extracted . | . . . . Installed . | . . . . Triggered . | . . . . Machines | -11 -10 -9 -8 ---------- Run | Yrd Mat Mat Mat Machines Disabled . | . . . . Max in Single Turn . | . . . . Machines Repaired . | . . . . Machines Dismantled . | . . . . Machines Sabotaged . | . . . . Overloaded Fab Kills . | . . . . Hacking | -11 -10 -9 -8 --------- Run | Yrd Mat Mat Mat Machines Accessed . | . . . . Terminals . | . . . . Fabricators . | . . . . Repair Stations . | . . . . Recycling Units . | . . . . Scanalyzers . | . . . . Garrison Access . | . . . . Total Hacks . | . . . . Successful . | . . . . Failed . | . . . . Catastrophic . | . . . . Database Lockouts . | . . . . Manual . | . . . . Terminals . | . . . . Fabricators . | . . . . Repair Stations . | . . . . Recycling Units . | . . . . Scanalyzers . | . . . . Garrison Access . | . . . . Terminal Hacks . | . . . . Fabricator Hacks . | . . . . Repair Station Hacks . | . . . . Recycling Unit Hacks . | . . . . Scanalyzer . | . . . . Garrison Access Hacks . | . . . . Unauthorized Hacks . | . . . . Terminals . | . . . . Fabricators . | . . . . Repair Stations . | . . . . Recycling Units . | . . . . Scanalyzers . | . . . . Garrison Access . | . . . . Data Cores Recovered . | . . . . Used . | . . . . Hacking Detections . | . . . . Full Trace Events . | . . . . Feedback Events . | . . . . Feedback Blocked . | . . . . Robot Schematics Acquired . | . . . . Robots Built . | . . . . Authchips . | . . . . Time . | . . . . Total Robot Build Rating . | . . . . Part Schematics Acquired . | . . . . Parts Built . | . . . . Authchips . | . . . . Time . | . . . . Total Part Build Rating . | . . . . Part Studies Acquired . | . . . . Parts Repaired . | . . . . Time . | . . . . Parts Recycled . | . . . . Recycled Matter . | . . . . Retrieved Matter . | . . . . Retrieved Components . | . . . . Parts Scanalyzed . | . . . . Part Schematics Acquired . | . . . . Parts Damaged . | . . . . Bothacking | -11 -10 -9 -8 ------------ Run | Yrd Mat Mat Mat Used RIF Installer . | . . . . Robots Hacked . | . . . . Non-combat . | . . . . Combat . | . . . . Robot Hacks Applied . | . . . . Relay Couplers Released . | . . . . Fabnet Peak Effective % . | . . . . Robots Rewired . | . . . . Allies Hacked . | . . . . Hacks Repelled . | . . . . Allies | -11 -10 -9 -8 -------- Run | Yrd Mat Mat Mat Total Allies . | . . . . Largest Group . | . . . . Highest-Rated Group . | . . . . Highest-Rated Ally . | . . . . Total Orders . | . . . . Ally Attacks . | . . . . Total Damage . | . . . . Kills . | . . . . Allies Corrupted . | . . . . Allies Melted . | . . . . Intel | -11 -10 -9 -8 ------- Run | Yrd Mat Mat Mat Active Infowar (turns) 991 | 17 353 467 154 Sensors 459 | . . 459 . Structural 620 | . . 466 154 Seismic 370 | 17 353 . . Robot Analysis Total . | . . . . Derelict Logs Recovered . | . . . . Drone Launches . | . . . . Drone Recoveries . | . . . . Exploration | -11 -10 -9 -8 ------------- Run | Yrd Mat Mat Mat Turns Passed 1324 | 240 462 468 154 Spaces Moved 617 | 119 228 229 41 Core 31 | 26 . 5 . Treads 534 | 93 228 172 41 Legs . | . . . . Wheels 52 | . . 52 . Hover . | . . . . Flight . | . . . . Fastest Speed 50 | 50 160 95 320 Average Speed 169 | 147 160 163 320 Slowest Speed 500 | 200 160 500 320 Overloaded Moves . | . . . . Propulsion Burnouts . | . . . . Robots Hopped . | . . . . Potential Cave-ins . | . . . . Cave-ins Triggered . | . . . . Exploration Rate (%) 17 | 5 35 25 6 Regions Visited 3 Branch Regions . Pre-discovered Areas . | . . . . Known Exits Taken 1 | . . 1 . Unknown Exits Taken 2 | 1 1 . . Scrap Searched . | . . . . Spaces Dug . | . . . . Terrain Destroyed 76 | . . 76 . Melee . | . . . . Projectile . | . . . . AOE 76 | . . 76 . Terrain Rammed . | . . . . Walls Destroyed . | . . . . Machines Disabled . | . . . . Actions | -11 -10 -9 -8 --------- Run | Yrd Mat Mat Mat Total 759 | 153 268 283 55 Wait 9 | . 2 7 . Move 614 | 118 227 228 41 Hop . | . . . . Pick Up 23 | 10 5 7 1 Fast Attach 2 | 2 . . . Attach 15 | 5 . 7 3 Detach 1 | . . 1 . Swap 4 | . 1 2 1 Drop 4 | 1 1 1 1 Fire 87 | 17 32 30 8 Melee . | . . . . Ram . | . . . . Kick . | . . . . Crush . | . . . . Escape Stasis . | . . . . Rewire . | . . . . Trap . | . . . . Miscellaneous . | . . . . Route ------- -11/Scrapyard -10/Materials -9/Materials -8/Materials History --------- Turn | Location | Event 28 | -11/Scrapyard | Discovered new exit (range 15) 241 | -11/Scrapyard | Entered Materials 308 | -10/Materials | Build established: Mutant 470 | -10/Materials | Discovered new exit (range 11) 703 | -10/Materials | Entered another Materials area 703 | -9/Materials | Evolved 2 slots: Utility x2 1006 | -9/Materials | Build established: Skirmisher 1104 | -9/Materials | Discovered new exit (range 8) 1166 | -9/Materials | Identified exit to Materials 1171 | -9/Materials | Entered another Materials area 1171 | -8/Materials | Evolved 2 slots: Utility x1, Weapon x1 1194 | -8/Materials | Lost 5 parts (1p2n1u1w) 1325 | -8/Materials | Self-destructed Last Messages --------------- G-34 Mercenary overheating. Aluminum Leg melted. G-34 Mercenary destroyed. K-01 Serf collects debris. K-01 Serf destroyed. Acquired 22 matter. Acquired 27 matter. Sensor Array destroyed. EXIT=IDENTIFIED: MATERIALS PARAMETERS=UTILITY+1,WEAPON+1 LOCATION=MATERIALS GOAL=ESCAPE Dropped Lrg. Storage Unit. Acquired Shield Generator. K-01 Serf collects debris. S-10 Pest destroyed. K-01 Serf collects debris. S-10 Pest destroyed. Lgt. Treads destroyed. Med. Laser destroyed. Map ----- +----------------------------------------------------+ | ?????????????????????????????????????????????????? | | ?????????????????????????????????????????????????? | | ?????????????????????????????????????????????????? | | ?????????????????????????????????????????????????? | | ?????????????????????????????????????????????????? | | ?????????????????????????????????????????????????? | | ?????????????????????????????????????????????????? | | ?????????????????????????????????????????????????? | | ?????????????????????????????????????????????????? | | ?????????????????????????????????????????????????? | | ?????????????????????????????????????????????????? | | ?????????????????????????????????????????????????? | | ????????????????????????????T????????????????????? | | ???????????????????????????? ????????????????????? | | ???????????????????????????? ????????????????????? | | ???????????????????????????? ????????????????????? | | ???????????????????????????? ????????????????????? | | ??????????????????????????## ##??????????????????? | | ??????????????????????????## ##??????????????????? | | ??????????????????????????## ##??????????????????? | | ????????????????############ ##??????????????????? | | ????????????????############ ##??????????????????? | | ????????????????## ## ##??????????????????? | | ????????????????## """ ## ##################### | | ????????????????## """ ## ##################### | | ???????????????? + """ @# ## | | ????????????????## %g% ! ## | | ????????????????##!=! #= ## | | ????????????????##!=! #########+########+##### | | ????????????????##== Y###### # | | ????????????????## ##??## """ # | | ????????????????######### ##??## """ # | | ????????????????############??## """ # | | ???????????????????????#####??## # !!! | | ??????????????????????????????## """ # !!! | | ??????????????????????????????## """ # !! | | ??????????????????????????????## """ # | | ??????????????????????????????## ########## | | ??????????????????????????????#################### | | | | | | | | | | | | | | | | | | | | | | | +----------------------------------------------------+ Best States ------------- Heat Dissipation 31 Energy Generation 10 Energy Capacity 250 Matter Stores 300 Matter Capacity 300 Sight Range 16 Robot Scan Range 14 Terrain Scan Density 10 Propulsion Shielding 33 Evasion (%) 50 Targeting Accuracy 6 Recoil Reduction 2 Item Schematics ----------------- None Robot Schematics ------------------ None Fabricated ------------ Nothing Repaired ---------- Nothing Studied --------- None Alien Tech Used ----------------- None Achievements -------------- None Challenges ------------ None Game ------ Seed ProjectileRocketRegenerator Manual? 0 Play Time 00:10:19 Cumulative 38.7 hours Start 2026.02.23 @ 21:47:00 End 2026.02.24 @ 12:39:12 Sessions 2 Manual Loads 0 Difficulty Rogue Special Mode None Game No. 92 Rogue 92 Adventurer 0 Explorer 0 Win Type - Total 0 Types 0/0/0/0/0/0/0/0/0/0 Lore% 29 Gallery% 35 Achievement% 27 Wizard Run 0 Options --------- Layout 1 ASCII 0 Keyboard 0 Movement Mouse Keybinds 0 Fullscreen 1 Font 24/Smallcaps Map View 50x35 Zoom Use 0% Tactical HUD 0 Map Filters NONE Filters NONE Steam 1 RUN: 91d399fc-e62e-4f81-8f73-9f3fa244e2fe